fUST/lending_fUST_20250614
["ID","MTS","AMOUNT","RATE_DAILY","PERIOD"]
[365762592,1749888633556,-460.0,0.00021095,4]
[365762593,1749888633566,-326.93239264,0.00021095,4]
[365762594,1749888633575,-430.0,0.00021095,4]
[365762595,1749888633592,-223.49018546,0.00021095,4]
[365762596,1749888633604,-447.7222059,0.00021095,4]
[365762597,1749888633614,-443.94634155,0.00021095,4]
[365762598,1749888633626,-440.0,0.00021095,4]
[365762599,1749888633638,-536.52557282,0.00021095,4]
[365762600,1749888633649,-440.0,0.00021095,4]
[365762601,1749888633658,-440.0,0.00021095,4]
[365762602,1749888633669,-440.0,0.00021095,4]
[365762603,1749888633679,-440.0,0.00021095,4]
[365762604,1749888633689,-440.0,0.00021095,4]
[365762605,1749888633699,-407.72159801,0.00021095,4]
[365762606,1749888633710,-405.37792435,0.00021095,4]
[365762607,1749888633720,-549.21609173,0.00021095,4]
[365762608,1749888633730,-406.9897184,0.00021095,4]
[365762609,1749888633740,-440.0,0.00021095,4]
[365762610,1749888633749,-312.42936226,0.00021095,4]
[365762611,1749888633759,-412.57978074,0.00021095,4]
[365762612,1749888633769,-400.0,0.00021095,4]
[365762613,1749888633779,-430.0,0.00021095,4]
[365762614,1749888633788,-440.0,0.00021095,4]
[365762615,1749888633798,-440.0,0.00021095,4]
[365762616,1749888633808,-440.0,0.00021095,4]
[365762617,1749888633818,-404.29426956,0.00021095,4]
[365762618,1749888633827,-440.0,0.00021095,4]
[365762619,1749888633837,-440.0,0.00021095,4]
[365762620,1749888633846,-370.0,0.00021095,4]
[365762621,1749888633856,-440.0,0.00021095,4]
[365762622,1749888633866,-352.34221752,0.00021095,4]
[365762623,1749888633876,-440.0,0.00021095,4]
[365762624,1749888633890,-370.0,0.00021095,4]
[365762625,1749888633900,-430.0,0.00021095,4]
[365762626,1749888633909,-440.0,0.00021095,4]
[365762627,1749888633919,-445.19873525,0.00021095,4]
[365762628,1749888633929,-225.82412333,0.00021095,4]
[365762629,1749888633938,-440.0,0.00021095,4]
[365762630,1749888633948,-430.0,0.00021095,4]
[365762631,1749888633958,-301.52955287,0.00021095,4]
[365762632,1749888633968,-440.0,0.00021095,4]
[365762633,1749888633977,-440.0,0.00021095,4]
[365762634,1749888633988,-264.97994793,0.00021095,4]
[365762635,1749888633998,-440.0,0.00021095,4]
[365762636,1749888634012,-440.0,0.00021095,4]
[365762637,1749888634028,-440.0,0.00021095,4]
[365762638,1749888634037,-455.63857379,0.00021095,4]
[365762639,1749888634047,-547.34600542,0.00021095,4]
[365762640,1749888634057,-430.0,0.00021095,4]
[365762641,1749888634067,-440.0,0.00021095,4]
[365762642,1749888634077,-440.0,0.00021095,4]
[365762643,1749888634087,-440.0,0.00021095,4]
[365762644,1749888634096,-430.0,0.00021095,4]
[365762645,1749888634106,-440.0,0.00021095,4]
[365762646,1749888634116,-440.0,0.00021095,4]
[365762647,1749888634125,-440.0,0.00021095,4]
[365762648,1749888634135,-373.73575379,0.00021095,4]
[365762649,1749888634144,-440.0,0.00021095,4]
[365762650,1749888634154,-440.0,0.00021095,4]
[365762651,1749888634165,-495.61111549,0.00021095,4]
[365762652,1749888634174,-441.39962132,0.00021095,4]
[365762653,1749888634184,-431.07505449,0.00021095,4]
[365762654,1749888634194,-446.33880489,0.00021095,4]
[365762655,1749888634204,-440.0,0.00021095,4]
[365762656,1749888634214,-409.88977804,0.00021095,4]
[365762657,1749888634223,-440.0,0.00021095,4]
[365762658,1749888634233,-440.0,0.00021095,4]
[365762659,1749888634243,-500.0,0.00021095,4]
[365762660,1749888634252,-452.79780775,0.00021095,4]
[365762661,1749888634262,-403.02800479,0.00021095,4]
[365762662,1749888634272,-430.0,0.00021095,4]
[365762663,1749888634282,-453.74929096,0.00021095,4]
[365762664,1749888634292,-440.0,0.00021095,4]
[365762665,1749888634301,-440.0,0.00021095,4]
[365762666,1749888634311,-440.0,0.00021095,4]
[365762667,1749888634320,-354.61715715,0.00021095,4]
[365762668,1749888634330,-450.0,0.00021095,4]
[365762669,1749888634339,-237.26284046,0.00021095,4]
[365762670,1749888634357,-202.73715954,0.00021095,4]
[365762671,1749888634367,-500.0,0.00021095,4]
[365762672,1749888634376,-440.0,0.00021095,4]
[365762673,1749888634388,-440.0,0.00021095,4]
[365762674,1749888634398,-460.0,0.00021095,4]
[365762675,1749888634409,-400.0,0.00021095,4]
[365762676,1749888634418,-440.0,0.00021095,4]
[365762677,1749888634427,-440.0,0.00021095,4]
[365762678,1749888634437,-460.0,0.00021095,4]
[365762679,1749888634446,-519.1778053,0.00021095,4]
[365762680,1749888634456,-440.0,0.00021095,4]
[365762681,1749888634466,-460.0,0.00021095,4]
[365762682,1749888634476,-406.0162744,0.00021095,4]
[365762683,1749888634485,-460.0,0.00021095,4]
[365762684,1749888634494,-440.0,0.00021095,4]
[365762685,1749888634504,-293.46954089,0.00021095,4]
[365762686,1749888634515,-440.0,0.00021095,4]
[365762687,1749888634525,-400.0,0.00021095,4]
[365762688,1749888634535,-372.74742083,0.00021095,4]
[365762689,1749888634547,-67.25257917,0.00021095,4]
[365762690,1749888634558,-440.0,0.00021095,4]
[365762691,1749888634568,-402.00983343,0.00021095,4]
[365762692,1749888634577,-460.0,0.00021095,4]
[365762693,1749888634586,-460.0,0.00021095,4]
[365762694,1749888634595,-440.0,0.00021095,4]
[365762695,1749888634604,-460.0,0.00021095,4]
[365762696,1749888634613,-440.0,0.00021095,4]
[365762697,1749888634623,-520.32479821,0.00021095,4]
[365762698,1749888634636,-500.0,0.00021095,4]
[365762699,1749888634645,-373.17581059,0.00021095,4]
[365762700,1749888634657,-126.82418941,0.00021095,4]
[365762701,1749888634667,-500.0,0.00021095,4]
[365762702,1749888634676,-440.0,0.00021095,4]
[365762703,1749888634685,-440.0,0.00021095,4]
[365762704,1749888634694,-500.0,0.00021095,4]
[365762705,1749888634705,-500.0,0.00021095,4]
[365762706,1749888634713,-337.26655804,0.00021095,4]
[365762707,1749888634724,-162.73344196,0.00021095,4]
[365762708,1749888634733,-500.0,0.00021095,4]
[365762709,1749888634742,-440.0,0.00021095,4]
[365762710,1749888634752,-500.0,0.00021095,4]
[365762711,1749888634761,-500.0,0.00021095,4]
[365762712,1749888634770,-500.0,0.00021095,4]
[365762713,1749888634779,-500.0,0.00021095,4]
[365762714,1749888634788,-500.0,0.00021095,4]
[365762715,1749888634797,-500.0,0.00021095,4]
[365762716,1749888634806,-327.44975827,0.00021095,4]
[365762717,1749888634815,-440.0,0.00021095,4]
[365762718,1749888634824,-448.41591678,0.00021095,4]
[365762719,1749888634833,-440.0,0.00021095,4]
[365762720,1749888634842,-440.0,0.00021095,4]
[365762721,1749888634851,-481.96345513,0.00021095,4]
[365762722,1749888634861,-450.0,0.00021095,4]
[365762723,1749888634870,-266.32755363,0.00021095,4]
[365762730,1749888638073,-259.71,0.00021085,10]
[365762732,1749888638083,-500.0,0.00021094,2]
[365762733,1749888638092,-500.0,0.00021094,2]
[365762734,1749888638102,-500.0,0.00021094,2]
[365762735,1749888638111,-164.67203496,0.00021094,2]
[365762736,1749888638120,-578.11803402,0.00021094,2]
[365762737,1749888638130,-183.67244637,0.00021095,4]
[365762738,1749888638139,-454.70987108,0.00021095,4]
[365762739,1749888638149,-440.0,0.00021095,4]
[365762740,1749888638158,-500.77518585,0.00021095,4]
[365762741,1749888638168,-440.0,0.00021095,4]
[365762742,1749888638178,-472.60810396,0.00021095,4]
[365762743,1749888638187,-460.0,0.00021095,4]
[365762744,1749888638197,-400.0,0.00021095,4]
[365762745,1749888638206,-460.0,0.00021095,4]
[365762746,1749888638215,-440.0,0.00021095,4]
[365762747,1749888638225,-460.0,0.00021095,4]
[365762748,1749888638234,-440.0,0.00021095,4]
[365762750,1749888638243,-413.13405275,0.00021095,4]
[365762753,1749888638253,-370.0,0.00021095,4]
[365762755,1749888638263,-300.0,0.00021095,4]
[365762758,1749888638273,-370.0,0.00021095,4]
[365762760,1749888638282,-430.0,0.00021095,4]
[365762761,1749888638292,-460.0,0.00021095,4]
[365762762,1749888638302,-440.0,0.00021095,4]
[365762763,1749888638312,-405.51258393,0.00021095,4]
[365762764,1749888638322,-440.0,0.00021095,4]
[365762765,1749888638331,-440.0,0.00021095,4]
[365762766,1749888638341,-440.0,0.00021095,4]
[365762767,1749888638350,-430.0,0.00021095,4]
[365762768,1749888638360,-431.30095445,0.00021095,4]
[365762769,1749888638369,-440.0,0.00021095,4]
[365762770,1749888638378,-458.59036024,0.00021095,4]
[365762771,1749888638388,-440.0,0.00021095,4]
[365762772,1749888638399,-209.93390703,0.00021095,4]
[365762773,1749888638412,-430.0,0.00021095,4]
[365762774,1749888638421,-440.0,0.00021095,4]
[365762775,1749888638431,-460.0,0.00021095,2]
[365762776,1749888638441,-451.57756083,0.00021095,4]
[365762777,1749888638558,-440.0,0.00021095,4]
[365762778,1749888638568,-440.0,0.00021095,4]
[365762779,1749888638579,-440.0,0.00021095,4]
[365762780,1749888638588,-440.0,0.00021095,4]
[365762781,1749888638599,-460.0,0.00021095,4]
[365762782,1749888638608,-440.0,0.00021095,4]
[365762783,1749888638618,-500.0,0.00021095,4]
[365762784,1749888638633,-209.06,0.00021095,4]
[365762785,1749888638642,-430.0,0.00021095,4]
[365762786,1749888638651,-333.20164016,0.00021095,4]
[365762787,1749888638660,-400.0,0.00021095,4]
[365762788,1749888638671,-849.6,0.00021095,4]
[365762789,1749888638681,-430.0,0.00021095,4]
[365762790,1749888638690,-440.0,0.00021095,4]
[365762791,1749888638700,-460.0,0.00021095,4]
[365762792,1749888638711,-460.0,0.00021095,4]
[365762793,1749888638720,-440.0,0.00021095,4]
[365762794,1749888638730,-460.0,0.00021095,4]
[365762795,1749888638739,-430.0,0.00021095,4]
[365762796,1749888638749,-460.0,0.00021095,4]
[365762797,1749888638758,-440.0,0.00021095,4]
[365762798,1749888638769,-503.37702553,0.00021095,2]
[365762799,1749888638778,-460.0,0.00021095,4]
[365762800,1749888638787,-460.0,0.00021095,4]
[365762801,1749888638797,-452.87921709,0.00021095,4]
[365762802,1749888638807,-351.22284102,0.00021095,4]
[365762803,1749888638817,-516.38224862,0.00021095,4]
[365762804,1749888638826,-440.0,0.00021095,4]
[365762805,1749888638835,-460.0,0.00021095,4]
[365762806,1749888638845,-440.0,0.00021095,4]
[365762807,1749888638855,-440.0,0.00021095,4]
[365762808,1749888638864,-440.0,0.00021095,4]
[365762809,1749888638873,-440.0,0.00021095,4]
[365762810,1749888638882,-440.0,0.00021095,4]
[365762811,1749888638892,-460.0,0.00021095,4]
[365762812,1749888638901,-423.78815854,0.00021095,4]
[365762813,1749888638911,-631.64,0.00021095,4]
[365762814,1749888638920,-440.0,0.00021095,4]
[365762815,1749888638929,-430.0,0.00021095,4]
[365762816,1749888638939,-460.0,0.00021095,4]
[365762817,1749888638948,-440.0,0.00021095,4]
[365762818,1749888638958,-440.0,0.00021095,4]
[365762819,1749888638967,-440.0,0.00021095,4]
[365762820,1749888638976,-460.0,0.00021095,4]
[365762821,1749888638986,-460.0,0.00021095,4]
[365762822,1749888638996,-507.8789668,0.00021095,4]
[365762823,1749888639005,-440.0,0.00021095,4]
[365762824,1749888639016,-440.0,0.00021095,4]
[365762825,1749888639025,-460.0,0.00021095,4]
[365762826,1749888639035,-440.0,0.00021095,4]
[365762827,1749888639044,-440.0,0.00021095,4]
[365762828,1749888639053,-440.0,0.00021095,4]
[365762829,1749888639063,-887.78,0.00021095,4]
[365762830,1749888639072,-404.42391293,0.00021095,4]
[365762831,1749888639082,-440.0,0.00021095,4]
[365762832,1749888639091,-430.0,0.00021095,4]
[365762833,1749888639100,-440.0,0.00021095,4]
[365762834,1749888639110,-221.5857828,0.00021095,4]
[365762835,1749888639119,-3269.74,0.00021095,4]
[365762836,1749888639129,-460.0,0.00021095,4]
[365762837,1749888639139,-580.32,0.00021095,4]
[365762838,1749888639149,-436.56945006,0.00021095,4]
[365762839,1749888639158,-440.0,0.00021095,4]
[365762840,1749888639168,-312.39432594,0.00021095,4]
[365762841,1749888639177,-460.0,0.00021095,4]
[365762842,1749888639186,-1129.34,0.00021095,4]
[365762843,1749888639195,-440.0,0.00021095,4]
[365762844,1749888639205,-810.27,0.00021095,4]
[365762845,1749888639214,-440.0,0.00021095,4]
[365762846,1749888639223,-1101.13,0.00021095,4]
[365762847,1749888639232,-382.45827274,0.00021095,4]
[365762848,1749888639242,-248.65377666,0.00021095,4]
[365762849,1749888639251,-460.0,0.00021095,4]
[365762850,1749888639261,-435.98423619,0.00021095,4]
[365762851,1749888639270,-460.0,0.00021095,4]
[365762852,1749888639282,-430.0,0.00021095,4]
[365762853,1749888639291,-791.31,0.00021095,4]
[365762854,1749888639301,-460.0,0.00021095,4]
[365762855,1749888639310,-440.0,0.00021095,4]
[365762856,1749888639321,-460.0,0.00021095,4]
[365762857,1749888639330,-440.0,0.00021095,4]
[365762858,1749888639339,-1319.6,0.00021095,4]
[365762859,1749888639348,-567.8038872,0.00021095,4]
[365762860,1749888639358,-430.0,0.00021095,4]
[365762861,1749888639367,-500.0,0.00021095,4]
[365762862,1749888639376,-536.9,0.00021095,4]
[365762863,1749888639385,-430.0,0.00021095,4]
[365762864,1749888639394,-435.39868368,0.00021095,4]
[365762865,1749888639403,-573.55779252,0.00021095,4]
[365762866,1749888639413,-440.0,0.00021095,4]
[365762867,1749888639422,-213.43148912,0.00021095,4]
[365762868,1749888639431,-460.0,0.00021095,4]
[365762869,1749888639440,-460.0,0.00021095,4]
[365762870,1749888639449,-440.0,0.00021095,4]
[365762871,1749888639459,-438.04597965,0.00021095,4]
[365762872,1749888639467,-3390.97,0.000211,2]
[365762873,1749888639478,-339.37128976,0.00021369,4]
[365762874,1749888639487,-440.0,0.00021369,4]
[365762875,1749888639496,-540.3985288,0.00021369,4]
[365762876,1749888639506,-947.43,0.00021369,4]
[365762877,1749888639516,-440.0,0.00021369,4]
[365762878,1749888639525,-548.81342715,0.00021369,4]
[365762879,1749888639534,-440.0,0.00021369,4]
[365762880,1749888639544,-342.34813726,0.00021369,4]
[365762881,1749888639553,-460.0,0.00021369,4]
[365762882,1749888639562,-460.0,0.00021369,4]
[365762884,1749888639571,-460.0,0.00021369,4]
[365762885,1749888639581,-440.0,0.00021369,4]
[365762886,1749888639591,-460.0,0.00021369,4]
[365762887,1749888639600,-358.73439878,0.00021369,4]
[365762889,1749888639610,-460.0,0.00021369,4]
[365762890,1749888639619,-440.0,0.00021369,4]
[365762891,1749888639632,-460.0,0.00021369,4]
[365762892,1749888639641,-460.0,0.00021369,4]
[365762893,1749888639650,-460.0,0.00021369,4]
[365762894,1749888639659,-460.0,0.00021369,2]
[365762895,1749888639668,-240.0,0.00021369,4]
[365762896,1749888639678,-849.6,0.00021369,4]
[365762899,1749888639687,-460.0,0.00021369,4]
[365762902,1749888639696,-460.0,0.00021369,4]
[365762905,1749888639707,-460.0,0.00021369,4]
[365762908,1749888639716,-460.0,0.00021369,4]
[365762911,1749888639725,-460.0,0.00021369,4]
[365762913,1749888639734,-631.64,0.00021369,4]
[365762915,1749888639743,-366.9046431,0.00021369,4]
[365762917,1749888639753,-460.0,0.00021369,4]
[365762919,1749888639762,-460.0,0.00021369,4]
[365762921,1749888639771,-440.0,0.00021369,4]
[365762923,1749888639781,-887.78,0.00021369,4]
[365762925,1749888639790,-3269.74,0.00021369,4]
[365762927,1749888639799,-460.0,0.00021369,4]
[365762929,1749888639808,-580.32,0.00021369,4]
[365762931,1749888639817,-1129.34,0.00021369,4]
[365762933,1749888639827,-810.27,0.00021369,4]
[365762935,1749888639836,-1101.13,0.00021369,4]
[365762937,1749888639845,-460.0,0.00021369,4]
[365762939,1749888639854,-791.31,0.00021369,4]
[365762941,1749888639864,-460.0,0.00021369,4]
[365762943,1749888639873,-1319.6,0.00021369,4]
[365762945,1749888639882,-536.9,0.00021369,4]
[365762947,1749888639891,-460.0,0.00021369,4]
[365762949,1749888639901,-460.0,0.00021369,4]
[365762951,1749888639910,-1011.81,0.000214,2]
[365762953,1749888639919,-1000.0,0.00021621,2]
[365762955,1749888639929,-947.43,0.00021643,4]
[365762957,1749888639938,-294.09,0.00021643,4]
[365762959,1749888639948,-460.0,0.00021643,4]
[365762961,1749888639957,-460.0,0.00021643,4]
[365762962,1749888639967,-460.0,0.00021643,4]
[365762964,1749888639977,-460.0,0.00021643,4]
[365762965,1749888639986,-440.0,0.00021643,4]
[365762966,1749888639996,-460.0,0.00021643,4]
[365762967,1749888640006,-460.0,0.00021643,2]
[365762968,1749888640015,-849.6,0.00021643,4]
[365762969,1749888640025,-460.0,0.00021643,4]
[365762970,1749888640034,-460.0,0.00021643,4]
[365762971,1749888640044,-460.0,0.00021643,4]
[365762972,1749888640054,-460.0,0.00021643,4]
[365762973,1749888640063,-460.0,0.00021643,4]
[365762974,1749888640073,-631.64,0.00021643,4]
[365762975,1749888640082,-460.0,0.00021643,4]
[365762976,1749888640092,-460.0,0.00021643,4]
[365762977,1749888640101,-887.78,0.00021643,4]
[365762978,1749888640111,-3269.74,0.00021643,4]
[365762979,1749888640121,-460.0,0.00021643,4]
[365762980,1749888640130,-580.32,0.00021643,4]
[365762981,1749888640140,-1129.34,0.00021643,4]
[365762982,1749888640150,-810.27,0.00021643,4]
[365762983,1749888640160,-1101.13,0.00021643,4]
[365762984,1749888640169,-460.0,0.00021643,4]
[365762985,1749888640180,-791.31,0.00021643,4]
[365762986,1749888640190,-460.0,0.00021643,4]
[365762987,1749888640200,-1319.6,0.00021643,4]
[365762988,1749888640210,-536.9,0.00021643,4]
[365762989,1749888640220,-460.0,0.00021643,4]
[365762990,1749888640230,-460.0,0.00021643,4]
[365762991,1749888640240,-7964.35041771,0.00021666,2]
[365762992,1749888640250,-782.70096405,0.00021721,2]
[365762994,1749888640259,-500.0,0.00021758,2]
[365762996,1749888640271,-1535.05,0.00021825,2]
[365762997,1749888640281,-420.0,0.00021872,2]
[365762998,1749888640291,-213.28201367,0.00021873,2]
[365762999,1749888640301,-424.40141186,0.00021873,2]
[365763000,1749888640311,-160.0,0.00021873,2]
[365763001,1749888640320,-229.82479369,0.00021873,2]
[365763002,1749888640331,-835.41710878,0.00021873,2]
[365763003,1749888640341,-160.0,0.00021873,2]
[365763004,1749888640352,-845.10789306,0.00021873,2]
[365763005,1749888640361,-160.0,0.00021873,2]
[365763006,1749888640371,-160.0,0.00021873,2]
[365763007,1749888640382,-160.0,0.00021873,2]
[365763008,1749888640392,-1010.12083254,0.000219,6]
[365763009,1749888640402,-947.43,0.00021917,4]
[365763010,1749888640411,-572.30420258,0.00021917,4]
[365763011,1749888640422,-460.0,0.00021917,4]
[365763012,1749888640431,-460.0,0.00021917,4]
[365763013,1749888640441,-440.0,0.00021917,4]
[365763014,1749888640451,-460.0,0.00021917,4]
[365763015,1749888640461,-460.0,0.00021917,2]
[365763016,1749888640470,-849.6,0.00021917,4]
[365763017,1749888640480,-460.0,0.00021917,4]
[365763018,1749888640490,-460.0,0.00021917,4]
[365763019,1749888640500,-440.0,0.00021917,4]
[365763020,1749888640509,-460.0,0.00021917,4]
[365763021,1749888640520,-631.64,0.00021917,4]
[365763022,1749888640615,-460.0,0.00021917,4]
[365763023,1749888640629,-460.0,0.00021917,4]
[365763024,1749888640640,-887.78,0.00021917,4]
[365763025,1749888640651,-3269.74,0.00021917,4]
[365763026,1749888640661,-460.0,0.00021917,4]
[365763027,1749888640671,-580.32,0.00021917,4]
[365763028,1749888640681,-1129.34,0.00021917,4]
[365763029,1749888640690,-810.27,0.00021917,4]
[365763030,1749888640701,-1101.13,0.00021917,4]
[365763031,1749888640710,-460.0,0.00021917,4]
[365763032,1749888640721,-791.31,0.00021917,4]
[365763033,1749888640731,-460.0,0.00021917,4]
[365763034,1749888640740,-1319.6,0.00021917,4]
[365763035,1749888640750,-536.9,0.00021917,4]
[365763036,1749888640760,-460.0,0.00021917,4]
[365763037,1749888640770,-460.0,0.00021917,4]
[365763038,1749888640781,-152.0,0.00022,2]
[365763039,1749888640790,-99302.72,0.00022,7]
[365763040,1749888640800,-166.0,0.00022,2]
[365763041,1749888640810,-1010.12083235,0.00022003,6]
[365763042,1749888640819,-207.4,0.00022088,2]
[365763043,1749888640829,-1750.456,0.00022088,2]
[365763044,1749888640839,-1010.12083235,0.00022107,6]
[365763045,1749888640848,-500.0,0.00022108,2]
[365763046,1749888640857,-151.0,0.00022108,2]
[365763047,1749888640867,-500.0,0.00022135,2]
[365763048,1749888640876,-151.0,0.00022135,2]
[365763049,1749888640886,-500.0,0.00022163,2]
[365763050,1749888640895,-245.0,0.00022163,2]
[365763051,1749888640904,-500.0,0.0002219,2]
[365763052,1749888640914,-947.43,0.00022191,4]
[365763053,1749888640924,-460.0,0.00022191,4]
[365763054,1749888640934,-460.0,0.00022191,4]
[365763055,1749888640943,-460.0,0.00022191,4]
[365763056,1749888640952,-460.0,0.00022191,2]
[365763057,1749888640961,-849.6,0.00022191,4]
[365763058,1749888640971,-440.0,0.00022191,4]
[365763059,1749888640981,-460.0,0.00022191,4]
[365763060,1749888640990,-519.68937054,0.00022191,4]
[365763061,1749888641001,-631.64,0.00022191,4]
[365763062,1749888641010,-459.23088691,0.00022191,4]
[365763063,1749888641019,-460.0,0.00022191,4]
[365763064,1749888641028,-887.78,0.00022191,4]
[365763065,1749888641038,-3269.74,0.00022191,4]
[365763066,1749888641047,-460.0,0.00022191,4]
[365763067,1749888641057,-580.32,0.00022191,4]
[365763068,1749888641066,-1129.34,0.00022191,4]
[365763069,1749888641076,-810.27,0.00022191,4]
[365763070,1749888641085,-1101.13,0.00022191,4]
[365763071,1749888641095,-460.0,0.00022191,4]
[365763072,1749888641104,-791.31,0.00022191,4]
[365763073,1749888641113,-460.0,0.00022191,4]
[365763074,1749888641123,-1319.6,0.00022191,4]
[365763075,1749888641132,-536.9,0.00022191,4]
[365763076,1749888641141,-460.0,0.00022191,4]
[365763077,1749888641151,-460.0,0.00022191,4]
[365763078,1749888641160,-1010.12083235,0.0002221,6]
[365763079,1749888641170,-500.0,0.00022218,2]
[365763080,1749888641179,-500.0,0.00022245,2]
[365763081,1749888641188,-500.0,0.00022272,2]
[365763082,1749888641198,-500.0,0.000223,2]
[365763083,1749888641207,-1010.12083235,0.00022314,7]
[365763084,1749888641216,-500.0,0.00022327,2]
[365763085,1749888641226,-500.0,0.00022355,2]
[365763086,1749888641235,-415.6842856,0.00022382,2]
[365763087,1749888641244,-2418.0,0.00022416,2]
[365763088,1749888641254,-1010.12083235,0.00022417,7]
[365763089,1749888641263,-2418.0,0.00022428,2]
[365763090,1749888641273,-782.70096405,0.00022448,2]
[365763091,1749888641282,-369.68,0.00022455,3]
[365763092,1749888641291,-160.0,0.00022464,2]
[365763093,1749888641301,-947.43,0.00022465,4]
[365763094,1749888641312,-297.59794586,0.00022465,4]
[365763095,1749888641323,-249.31706771,0.00022465,4]
[365763096,1749888641333,-581.51030635,0.00022465,4]
[365763097,1749888641344,-460.0,0.00022465,2]
[365763098,1749888641355,-849.6,0.00022465,4]
[365763099,1749888641365,-460.0,0.00022465,4]
[365763100,1749888641375,-631.64,0.00022465,4]
[365763101,1749888641384,-460.0,0.00022465,4]
[365763102,1749888641393,-887.78,0.00022465,4]
[365763103,1749888641404,-3269.74,0.00022465,4]
[365763104,1749888641417,-460.0,0.00022465,4]
[365763105,1749888641426,-580.32,0.00022465,4]
[365763106,1749888641435,-1129.34,0.00022465,4]
[365763107,1749888641445,-810.27,0.00022465,4]
[365763108,1749888641454,-1101.13,0.00022465,4]
[365763109,1749888641463,-460.0,0.00022465,4]
[365763110,1749888641473,-791.31,0.00022465,4]
[365763111,1749888641482,-460.0,0.00022465,4]
[365763112,1749888641492,-1319.6,0.00022465,4]
[365763113,1749888641501,-536.9,0.00022465,4]
[365763114,1749888641510,-359.58033034,0.00022465,4]
[365763115,1749888641519,-460.0,0.00022465,4]
[365763116,1749888641529,-500.0,0.00022466,2]
[365763117,1749888641543,-500.0,0.00022466,2]
[365763118,1749888641560,-500.0,0.00022466,2]
[365763119,1749888641574,-500.0,0.00022466,2]
[365763120,1749888641587,-650.0,0.00022466,2]
[365763121,1749888641599,-500.0,0.00022466,2]
[365763122,1749888641613,-1010.12083235,0.00022521,7]
[365763123,1749888641626,-291.01043475,0.00022558,2]
[365763124,1749888641640,-1010.12083235,0.00022624,7]
[365763125,1749888641654,-2418.0,0.00022632,2]
[365763126,1749888641668,-507.0,0.0002269,2]
[365763127,1749888641682,-1011.81,0.000227,7]
[365763128,1749888641697,-3390.97,0.000227,7]
[365763129,1749888641711,-1010.12083235,0.00022728,7]
[365763130,1749888641723,-947.43,0.00022739,4]
[365763131,1749888641735,-514.58370918,0.00022739,2]
[365763132,1749888641748,-849.6,0.00022739,4]
[365763133,1749888641763,-460.0,0.00022739,4]
[365763134,1749888641775,-631.64,0.00022739,4]
[365763135,1749888641788,-460.0,0.00022739,4]
[365763136,1749888641799,-887.78,0.00022739,4]
[365763137,1749888641811,-3269.74,0.00022739,4]
[365763138,1749888641823,-460.0,0.00022739,4]
[365763139,1749888641837,-580.32,0.00022739,4]
[365763140,1749888641850,-1129.34,0.00022739,4]
[365763141,1749888641863,-810.27,0.00022739,4]
[365763142,1749888641876,-1101.13,0.00022739,4]
[365763143,1749888641889,-460.0,0.00022739,4]
[365763144,1749888641903,-791.31,0.00022739,4]
[365763145,1749888641916,-460.0,0.00022739,4]